bitfinex-derivatives/quotes_BTCF0:USTF0_20250320
["timestamp","ask_amount","ask_price","bid_price","bid_amount"]
[1742432534050,0.13692,85946.0,85932.0,0.0465381]
[1742432534250,0.0006,85973.0,85909.0,0.98162]
[1742432534251,0.3608,85957.0,85956.0,0.0930503]
[1742432534649,0.3608,85957.0,85956.0,2.19792]
[1742432534850,0.4538493,85957.0,85956.0,2.19792]
[1742432535042,0.3608,85957.0,85956.0,2.19792]
[1742432535247,0.3608,85957.0,85956.0,2.2909703]
[1742432535446,0.3608,85957.0,85956.0,2.19792]
[1742432535649,0.4538493,85957.0,85956.0,2.19792]
[1742432535848,0.4538493,85957.0,85956.0,1.5]
[1742432536051,0.5907693,85957.0,85956.0,1.5]
[1742432536259,0.0930721,85936.0,85935.0,0.0930721]
[1742432536554,0.093066,85942.0,85935.0,0.79314839]
[1742432536859,0.0930683,85940.0,85939.0,0.0930687]
[1742432537057,0.0930709,85937.0,85936.0,0.00068]
[1742432537352,0.0465344,85939.0,85932.0,0.143]
[1742432537353,0.0930753,85933.0,85932.0,0.143]
[1742432537752,0.2301953,85933.0,85932.0,0.143]
[1742432538544,0.1836577,85933.0,85918.0,0.0930913]
[1742432538751,0.0930872,85922.0,85921.0,0.69792]
[1742432539446,0.88464001,85948.0,85942.0,0.0465325]
[1742432539651,0.00120001,85948.0,85944.0,0.0930633]
[1742432539861,0.3260532,85957.0,85944.0,0.4538633]
[1742432540061,0.2330034,85957.0,85944.0,2.50036725]
[1742432540263,0.2330034,85957.0,85956.0,0.0930503]
[1742432540761,0.2330034,85957.0,85956.0,0.7909703]
[1742432540954,0.1469,85981.0,85957.0,0.69792]
[1742432541258,0.13696,85983.0,85975.0,0.0930298]
[1742432541557,0.70382451,85985.0,85984.0,0.09302]
[1742432541762,0.70382451,85985.0,85984.0,0.44173801]
[1742432541763,0.332862,85985.0,85984.0,0.44173801]
[1742432541962,0.332862,85985.0,85984.0,0.53475801]
[1742432542160,0.332862,85985.0,85984.0,2.03475801]
[1742432542466,0.15210186,85995.0,85988.0,0.0465077]
[1742432542655,0.0930023,86003.0,86002.0,0.0929995]
[1742432543055,0.0930023,86003.0,86002.0,0.44173801]
[1742432543953,0.0930017,86001.0,86000.0,0.1507]
[1742432544150,0.0930017,86001.0,85983.0,0.0930205]
[1742432544151,0.1395332,85984.0,85983.0,0.0930205]
[1742432544657,0.3608,85987.0,85986.0,0.0930179]
[1742432545051,0.3608,85987.0,85986.0,0.53475591]
[1742432545654,0.00017441,85995.0,85994.0,0.0930092]
[1742432546162,0.00017441,85995.0,85994.0,0.53474721]
[1742432546854,0.09318251,85995.0,85993.0,0.04604881]
[1742432547055,0.09318251,85995.0,85994.0,0.0930092]
[1742432547366,0.09318251,85995.0,85994.0,0.2370092]
[1742432548964,0.09318251,85995.0,85994.0,0.3865092]
[1742432549363,0.31645068,85995.0,85994.0,0.3865092]
[1742432549667,0.20006477,86001.0,86000.0,0.0930027]
[1742432549871,0.29306647,86001.0,86000.0,0.0930027]
[1742432550364,0.29306647,86001.0,86000.0,0.3891027]
[1742432551269,0.29306647,86001.0,86000.0,0.2961]
[1742432551767,0.29306647,86001.0,86000.0,0.3891027]
[1742432552061,0.20006477,86001.0,86000.0,0.3891027]
[1742432553466,0.20006477,86001.0,85998.0,0.0465023]
[1742432553664,0.20006477,86001.0,76857.0,0.01820412]
[1742432553972,0.0465444,85921.0,85870.0,0.47233071]
[1742432554157,0.3608,85893.0,85892.0,0.0931197]
[1742432554357,0.3608,85893.0,85892.0,0.3962197]
[1742432554558,0.1447,85902.0,85892.0,0.3031]
[1742432554860,0.3608,85913.0,85897.0,0.3608]
[1742432555168,0.3608,85913.0,85904.0,0.0931063]
[1742432555352,0.3608,85913.0,85905.0,0.3031]
[1742432555353,0.0931045,85906.0,85905.0,0.3031]
[1742432555551,0.0931045,85906.0,85890.0,0.3608]
[1742432555552,0.0931229,85889.0,85888.0,0.00017463]
[1742432555761,0.00017463,85914.0,85888.0,0.14321463]
[1742432555962,0.04655,85911.0,85903.0,0.3608]
[1742432556160,0.04655,85911.0,85894.0,0.4073587]
[1742432556161,0.0931056,85905.0,85904.0,0.1491]
[1742432556363,0.0465521,85907.0,85888.0,0.00017463]
[1742432556364,0.0465544,85902.0,85888.0,0.00017463]
[1742432556561,0.0931214,85891.0,85888.0,0.00017463]
[1742432556765,0.2932403,85896.0,85895.0,0.0931164]
[1742432556960,0.2001245,85896.0,85895.0,0.0931164]
[1742432557365,0.2932398,85896.0,85895.0,0.0931164]
[1742432557862,0.2932398,85896.0,85895.0,0.2422164]
[1742432558059,0.00017463,85914.0,85895.0,1.8922164]
[1742432558261,0.14432,85930.0,85895.0,1.8922164]
[1742432558262,0.42273267,85929.0,85913.0,0.0930969]
[1742432558462,0.093096,85914.0,85913.0,0.0930969]
[1742432558866,0.0930942,85916.0,85915.0,0.1396396]
[1742432559567,0.0465446,85921.0,85920.0,0.0930893]
[1742432559871,0.0465446,85921.0,85920.0,1.9538893]
[1742432560867,0.0465441,85922.0,85920.0,1.9538893]
[1742432560868,0.00017463,85924.0,85923.0,0.0930861]
[1742432561065,0.00875066,85961.0,85921.0,0.1422]
[1742432561260,0.0465295,85948.0,85944.0,0.3608]
[1742432561467,0.0930623,85945.0,85944.0,0.3608]
[1742432561768,0.0465373,85934.0,85926.0,0.3608]
[1742432561965,0.0930818,85927.0,85926.0,0.3608]
[1742432562165,0.28582,85933.0,85910.0,0.3608]
[1742432562166,0.0930969,85913.0,85912.0,0.0930971]
[1742432562367,0.3608,85930.0,85910.0,0.3608]
[1742432562368,0.1396374,85921.0,85920.0,0.0930888]
[1742432562574,0.1521,85926.0,85917.0,0.0465459]
[1742432562575,0.1521,85926.0,85918.0,0.1489]
[1742432562766,0.0930904,85920.0,85919.0,0.0930862]
[1742432563563,0.1521,85926.0,85918.0,0.1489]
[1742432563763,0.0930904,85919.0,85918.0,0.1489]
[1742432564272,0.3608,85929.0,85918.0,0.1489]
[1742432564469,0.0465344,85939.0,85934.0,0.0930742]
[1742432564773,0.1521,85945.0,85930.0,0.0465388]
[1742432564988,0.0930763,85932.0,85931.0,0.1489]
[1742432565172,0.0930796,85929.0,85928.0,0.3608]
[1742432566970,0.23848803,85935.0,85934.0,0.0930742]
[1742432567873,0.00108,85951.0,85950.0,0.0930568]
[1742432568073,0.0930558,85951.0,85950.0,1.5]
[1742432568279,0.4538558,85951.0,85950.0,1.5]
[1742432568975,0.4538558,85951.0,85941.0,0.046533]
[1742432568976,0.0930709,85937.0,85936.0,0.14488]
[1742432569469,0.0930763,85932.0,85931.0,0.3608]
[1742432570171,3e-08,85940.0,85939.0,0.0930688]
[1742432570374,3e-08,85940.0,85939.0,0.5987888]
[1742432570970,3e-08,85940.0,85939.0,2.0987888]
[1742432572488,0.09306773,85940.0,85939.0,0.4538688]
[1742432572777,0.09306773,85940.0,85939.0,0.6079688]
[1742432573574,0.09306773,85940.0,85939.0,0.7601688]
[1742432573980,3e-08,85940.0,85939.0,0.7601688]
[1742432575368,0.09306773,85940.0,85939.0,0.5149]
[1742432575682,0.0930698,85938.0,85937.0,4e-05]
[1742432576378,0.0930698,85938.0,85930.0,0.1456]
[1742432576379,0.0930818,85927.0,85926.0,0.00017453]
[1742432577777,0.2393818,85927.0,85926.0,0.00017453]
[1742432579484,0.3829418,85927.0,85926.0,0.00017453]
[1742432579881,0.28986,85927.0,85926.0,0.09325733]
[1742432580076,0.0930803,85929.0,85928.0,0.1396184]
[1742432580276,0.0930803,85929.0,85928.0,0.1954399]
[1742432580480,0.13375184,85931.0,85930.0,0.0930785]
[1742432580881,0.13375184,85931.0,85930.0,0.4538785]
[1742432581385,0.13375184,85931.0,85930.0,1.9538785]
[1742432581582,3e-08,85940.0,85938.0,0.0930688]
[1742432581787,3e-08,85940.0,85935.0,0.0465365]
[1742432581788,0.09306773,85940.0,85939.0,0.1489]
[1742432582490,3e-08,85940.0,85939.0,0.2419688]
[1742432583086,3e-08,85940.0,85939.0,0.3846088]
[1742432585781,3e-08,85940.0,85939.0,0.39951538]
[1742432586285,3e-08,85940.0,85939.0,1.89951538]
[1742432586490,0.21448027,85951.0,85939.0,1.89951538]
[1742432586491,0.16795227,85951.0,85950.0,0.0930568]
[1742432586682,0.001,85977.0,85950.0,0.50264]
[1742432586885,0.1462,85995.0,85976.0,0.4538287]
[1742432587186,0.28074887,85981.0,85980.0,0.1860402]
[1742432587392,0.28074887,85981.0,85980.0,0.2790615]
[1742432587782,0.28074887,85981.0,85980.0,0.45382]
[1742432588176,0.23423647,85981.0,85980.0,0.45382]
[1742432589480,0.23423647,85981.0,85980.0,1.95382]
[1742432589876,0.26683267,85988.0,85987.0,0.0930168]
[1742432590082,0.26683267,85988.0,85987.0,0.6050568]
[1742432591692,0.09318923,85989.0,85988.0,0.0930157]
[1742432592082,0.09318923,85989.0,85988.0,0.2416157]
[1742432592490,0.09318923,85989.0,85988.0,0.4123757]
[1742432593578,0.09318923,85989.0,85988.0,0.5583757]
[1742432593788,0.00017453,85989.0,85988.0,0.5583757]
[1742432594389,0.0465029,85998.0,85997.0,0.093006]
[1742432594593,0.0465029,85998.0,85997.0,0.594006]
[1742432595293,0.0465029,85998.0,85997.0,0.883406]
[1742432595983,0.1395104,85998.0,85997.0,0.883406]
[1742432600790,0.1395104,85998.0,85997.0,0.3608]
[1742432600982,0.1395104,85998.0,85987.0,0.4538168]
[1742432600983,0.0930157,85988.0,85987.0,0.4538168]
[1742432601283,0.0465047,85994.0,85993.0,0.1395112]
[1742432601488,0.0930088,85995.0,85994.0,0.1395112]
[1742432601685,0.0465019,85999.0,85998.0,0.0930038]
[1742432601891,0.0930023,86001.0,86000.0,0.0930006]
[1742432602088,0.0930023,86001.0,86000.0,0.3929006]
[1742432607794,0.1522,86004.0,86000.0,0.3929006]
[1742432608002,0.13961102,86006.0,86005.0,0.0929973]
[1742432608797,0.04661262,86006.0,86005.0,0.0929973]
[1742432609196,0.00011442,86006.0,86005.0,0.0929973]
[1742432609399,0.09311072,86006.0,86005.0,0.0929973]
[1742432610801,0.00011442,86006.0,86005.0,0.0929973]
[1742432611004,0.0464971,86008.0,86007.0,0.0929941]
[1742432611307,0.0464971,86008.0,86007.0,0.2293941]
[1742432612699,0.0464971,86008.0,86007.0,1.7293941]
[1742432613405,0.01645489,86009.0,86008.0,0.0929941]
[1742432613607,0.092993,86009.0,86008.0,0.0929941]
[1742432613803,0.5034,86043.0,86008.0,0.52]
[1742432614000,0.1539,86025.0,86024.0,0.0929768]
[1742432614305,0.2468757,86025.0,86024.0,0.2290568]
[1742432615005,0.35665273,86025.0,86024.0,0.2290568]
[1742432615592,0.26367703,86025.0,86024.0,0.2290568]
[1742432615798,0.10977703,86025.0,86024.0,0.2290568]
[1742432616296,0.42073267,86032.0,86031.0,0.0929692]
[1742432616297,0.26683267,86032.0,86031.0,0.0929692]
[1742432616602,0.26683267,86032.0,86031.0,0.4537692]
[1742432616995,0.26683267,86032.0,86031.0,1.9537692]
[1742432617707,0.26683267,86032.0,86031.0,1.9637692]
[1742432618702,0.3429803,86039.0,86036.0,0.0929638]
[1742432618895,0.3429803,86039.0,86038.0,0.3608]
[1742432619102,0.3429803,86039.0,86038.0,0.4537617]
[1742432619704,0.1890803,86039.0,86038.0,0.4537617]
[1742432620503,0.0464792,86041.0,86040.0,0.0929595]
[1742432620706,0.1517,86042.0,86041.0,0.0929584]
[1742432620909,0.1394332,86048.0,86047.0,0.0464749]
[1742432621213,0.0464769,86048.0,86047.0,0.0464749]
[1742432621507,0.1517,86048.0,86047.0,0.0464749]
[1742432621715,0.0464724,86057.0,86056.0,0.0929377]
[1742432622013,0.0929444,86055.0,86054.0,0.0929441]
[1742432622203,0.1394257,86050.0,86049.0,0.0929461]
[1742432622507,0.1394257,86050.0,86049.0,0.1029461]
[1742432623513,0.0464748,86050.0,86049.0,0.1029461]
[1742432623708,0.1394203,86052.0,86051.0,0.0929476]
[1742432623901,0.2446445,86054.0,86053.0,0.0929455]
[1742432624106,0.2446445,86054.0,86053.0,1.9537455]
[1742432624318,4e-05,86055.0,86054.0,0.0929444]
[1742432624517,0.0929801,86058.0,86057.0,0.0929411]
[1742432624703,0.0929801,86058.0,86057.0,0.2269411]
[1742432625406,0.0464691,86060.0,86057.0,0.2734112]
[1742432625600,0.0465091,86060.0,86057.0,0.134]
[1742432625805,0.0929401,86058.0,86057.0,0.134]
[1742432626011,4e-05,86060.0,86059.0,0.092939]
[1742432626917,0.0929779,86060.0,86059.0,0.092939]
[1742432627111,0.0929779,86060.0,86059.0,0.10938141]
[1742432627309,0.0929779,86060.0,86059.0,1.60938141]
[1742432627904,0.0929779,86060.0,86059.0,1.75058141]
[1742432628412,4e-05,86065.0,86064.0,0.0929336]
[1742432628605,4e-05,86065.0,86064.0,0.4737336]
[1742432629013,0.0464636,86070.0,86069.0,0.0929259]
[1742432629214,0.1393943,86070.0,86069.0,0.0929259]
[1742432630215,0.1393943,86070.0,86064.0,0.3608]
[1742432630216,0.0929325,86065.0,86064.0,0.3608]
[1742432630812,0.0929325,86065.0,86064.0,0.4537336]
[1742432632416,0.0929325,86065.0,86064.0,0.6001336]
[1742432635521,0.0929401,86058.0,86051.0,0.01703077]
[1742432635726,4e-05,86067.0,86054.0,0.3608]
[1742432635727,0.0929433,86055.0,86054.0,0.3608]
[1742432635923,0.0929433,86055.0,86054.0,0.4608]
[1742432636116,0.0929433,86055.0,86054.0,0.5537444]
[1742432636426,0.0929433,86055.0,86054.0,0.7043444]
[1742432638023,0.139403,86064.0,86063.0,0.0464664]
[1742432638229,0.0929357,86062.0,86061.0,0.0464681]
[1742432638619,0.0929357,86062.0,86061.0,1.5464681]
[1742432638822,0.3969357,86062.0,86061.0,1.5464681]
[1742432639124,0.2475357,86062.0,86061.0,1.5464681]
[1742432639828,0.2475357,86062.0,86061.0,1.9072681]
[1742432640041,0.2475357,86062.0,86061.0,0.4072681]
[1742432640419,0.3969357,86062.0,86061.0,0.4072681]
[1742432642229,0.0929357,86062.0,86061.0,0.4072681]
[1742432642632,0.2381357,86062.0,86061.0,0.4537368]
[1742432643522,0.2381357,86062.0,86061.0,0.6034368]
[1742432644524,0.0929357,86062.0,86061.0,0.6034368]
[1742432644731,4e-05,86066.0,86065.0,0.0929325]
[1742432645031,0.0929714,86066.0,86065.0,0.0929325]
[1742432645524,4e-05,86066.0,86065.0,0.0929325]
[1742432646329,0.0929714,86066.0,86065.0,0.0929325]
[1742432647934,4e-05,86066.0,86065.0,0.0929325]
[1742432648323,0.0929714,86066.0,86065.0,0.0929325]
[1742432648523,0.2394714,86066.0,86065.0,0.0929325]
[1742432649328,4e-05,86066.0,86065.0,0.0929325]
[1742432649540,4e-05,86066.0,86065.0,0.1029325]
[1742432650033,4e-05,86066.0,86065.0,0.14240336]
[1742432650435,0.0464614,86074.0,86065.0,0.14240336]
[1742432650436,0.2394213,86076.0,86075.0,0.0929217]
[1742432650826,0.2394213,86076.0,86075.0,0.1081028]
[1742432651330,0.3810206,86076.0,86075.0,0.1081028]
[1742432651728,0.1465,86076.0,86075.0,0.1081028]
[1742432651931,0.2394206,86076.0,86075.0,0.1081028]
[1742432652127,0.4083,86077.0,86076.0,0.0929206]
[1742432652337,0.4083,86077.0,86076.0,0.2468206]
[1742432652634,4e-05,86078.0,86077.0,0.0929195]
[1742432652835,4e-05,86078.0,86077.0,0.1629195]
[1742432653025,4e-05,86078.0,86077.0,0.3068195]
[1742432653328,0.0929116,86085.0,86084.0,0.0929109]
[1742432653529,0.1486,86089.0,86088.0,0.0929077]
[1742432653530,0.2879607,86089.0,86088.0,0.0929077]
[1742432653739,0.21527859,86092.0,86089.0,0.0929055]
[1742432653942,0.4083,86092.0,86091.0,0.0929044]
[1742432654243,0.4083,86092.0,86091.0,0.1029044]
[1742432654431,0.4083,86092.0,86091.0,0.2522044]
[1742432654834,0.5012034,86092.0,86091.0,0.2522044]
[1742432655337,0.4083,86092.0,86091.0,0.2522044]
[1742432655737,4e-05,86093.0,86092.0,0.0929034]
[1742432655942,4e-05,86095.0,86093.0,0.0929023]
[1742432656141,0.1,86100.0,86099.0,0.0928958]
[1742432656341,0.1,86100.0,86099.0,0.3718158]
[1742432656839,0.05394376,86100.0,86099.0,1.8718158]
[1742432657430,0.05394376,86100.0,86099.0,2.0138158]
[1742432658133,4e-05,86106.0,86103.0,0.0928915]
[1742432658335,0.0464437,86107.0,86103.0,1.0136915]
[1742432658537,0.39325128,86104.0,86103.0,1.0136915]
[1742432658931,0.092889,86106.0,86105.0,0.0928882]
[1742432659140,0.092889,86106.0,86105.0,0.3328882]
[1742432659829,0.092889,86106.0,86105.0,0.24]
[1742432660032,0.270389,86106.0,86105.0,0.24]
[1742432660841,0.442689,86106.0,86105.0,0.3328893]
[1742432661030,0.1775,86106.0,86105.0,0.3328893]
[1742432661236,0.0929252,86110.0,86109.0,0.092885]
[1742432661439,4e-05,86110.0,86109.0,0.102885]
[1742432662557,0.046441,86112.0,86111.0,0.1857598]
[1742432662736,0.046481,86112.0,86111.0,0.5565598]
[1742432663046,0.046481,86112.0,86111.0,0.8465598]
[1742432663744,0.046481,86112.0,86111.0,0.5565598]
[1742432665938,4e-05,86112.0,86111.0,0.5665598]
[1742432666139,0.0929218,86112.0,86111.0,0.5665598]
[1742432667533,4e-05,86112.0,86111.0,0.5665598]
[1742432668143,0.0929218,86112.0,86111.0,0.5665598]
[1742432669036,4e-05,86112.0,86111.0,0.5665598]
[1742432669437,0.0929218,86112.0,86111.0,0.5665598]
[1742432670547,0.08189938,86112.0,86111.0,0.5665598]
[1742432671135,0.191,86113.0,86112.0,0.0928818]
[1742432671340,0.0928807,86113.0,86112.0,0.2557636]
[1742432671846,0.0464388,86116.0,86112.0,0.2557636]
[1742432671847,0.0928791,86115.0,86114.0,0.1393168]
[1742432672043,0.1833,86116.0,86114.0,0.1393168]
[1742432672044,0.2761775,86116.0,86115.0,0.0928785]
[1742432672538,0.2761775,86116.0,86115.0,0.2196385]
[1742432673543,0.2761775,86116.0,86115.0,0.3920385]
[1742432674152,0.4497775,86116.0,86115.0,0.3920385]
[1742432675248,4e-05,86117.0,86116.0,0.0928775]
[1742432675452,4e-05,86117.0,86116.0,0.1128775]
[1742432675656,4e-05,86117.0,86116.0,0.2970775]
[1742432675843,4e-05,86117.0,86116.0,1.7970775]
[1742432676353,0.3702,86123.0,86122.0,0.092871]
[1742432676550,0.3702,86123.0,86122.0,0.453671]
[1742432677651,0.4630699,86123.0,86122.0,0.453671]
[1742432678056,0.3702,86123.0,86122.0,0.629471]
[1742432678663,0.3702,86123.0,86122.0,0.755391]
[1742432681459,0.1889,86123.0,86122.0,0.755391]
[1742432681654,0.2817699,86123.0,86122.0,0.755391]
[1742432681850,0.4681699,86123.0,86122.0,0.755391]
[1742432682251,0.4681699,86123.0,86122.0,0.77137983]
[1742432682450,0.3753,86123.0,86122.0,0.77137983]
[1742432682860,0.1889,86123.0,86122.0,0.77137983]
[1742432683053,0.1889,86123.0,86122.0,0.79137983]
[1742432683450,0.5475847,86137.0,86136.0,0.0928559]
[1742432684058,0.56342255,86137.0,86136.0,0.0928559]
[1742432684947,0.0928602,86133.0,86132.0,0.0928594]
[1742432685153,0.0928602,86133.0,86131.0,0.3608]
[1742432685458,0.4499602,86132.0,86131.0,0.4536601]
[1742432685662,0.4499602,86132.0,86131.0,0.3608]
[1742432685956,0.4499602,86132.0,86131.0,0.4536613]
[1742432685957,0.3571,86132.0,86131.0,0.4536613]
[1742432686164,0.4499602,86132.0,86131.0,0.4536613]
[1742432692259,0.0928764,86117.0,86116.0,0.0006]
[1742432692455,0.1393151,86117.0,86116.0,0.1028774]
[1742432692668,0.1393151,86117.0,86116.0,0.0928774]
[1742432692865,0.5476151,86117.0,86116.0,0.0928774]
[1742432693873,0.0928785,86115.0,86114.0,0.00017422]
[1742432696262,0.10837462,86115.0,86114.0,0.00017422]
[1742432697769,0.51667462,86115.0,86114.0,0.00017422]
[1742432698665,0.51667462,86115.0,86084.0,0.0464557]
[1742432698666,0.0929012,86094.0,86084.0,0.0464557]
[1742432698860,0.0929088,86088.0,86087.0,0.0929084]
[1742432699064,0.0929088,86088.0,86087.0,0.4996084]
[1742432699364,0.3032088,86088.0,86087.0,0.4996084]
[1742432699566,0.2103,86088.0,86087.0,0.4996084]
[1742432699764,0.399,86093.0,86092.0,0.0929034]
[1742432699967,0.4919023,86093.0,86092.0,0.4537034]
[1742432700171,0.2909023,86093.0,86092.0,0.4537034]
[1742432701467,0.00017353,86096.0,86095.0,0.0929001]
[1742432701671,0.00017353,86096.0,86095.0,0.3005001]
[1742432701865,0.00017353,86096.0,86095.0,0.5064001]
[1742432702073,0.00017353,86096.0,86095.0,2.0064001]
[1742432702578,0.10776415,86096.0,86095.0,2.0064001]
[1742432702980,0.20066315,86096.0,86095.0,2.0064001]
[1742432703778,0.10776415,86096.0,86095.0,2.0164001]
[1742432703978,0.20066315,86096.0,86095.0,2.0164001]
[1742432704372,0.06922163,86096.0,86095.0,2.5003601]
[1742432704675,0.04537311,86096.0,86095.0,2.5203601]
[1742432705266,0.0928855,86109.0,86106.0,0.0464441]
[1742432705477,0.4083,86110.0,86109.0,0.092885]
[1742432705875,0.4083,86110.0,86109.0,0.503185]
[1742432706075,0.4083,86110.0,86109.0,0.513185]
[1742432706380,0.4083,86110.0,86109.0,0.52911119]
[1742432706777,0.11954673,86115.0,86114.0,0.0928796]
[1742432706976,0.11954673,86115.0,86114.0,0.4536796]
[1742432707181,0.06033013,86115.0,86114.0,0.5836796]
[1742432707368,0.14139006,86128.0,86126.0,0.0928667]
[1742432707683,0.14139006,86128.0,86127.0,0.0928656]
[1742432707975,0.14139006,86128.0,86127.0,0.7409656]
[1742432708175,0.00375276,86128.0,86127.0,0.7409656]
[1742432708370,0.09284,86154.0,86153.0,0.0928365]
[1742432708573,0.10867152,86154.0,86153.0,0.0928365]
[1742432708773,0.51977152,86154.0,86153.0,0.0928365]
[1742432709272,0.50394,86154.0,86153.0,0.0928365]
[1742432709580,0.30294,86154.0,86153.0,0.0928365]
[1742432710072,0.50394,86154.0,86153.0,0.0928365]
[1742432710978,0.09284,86154.0,86153.0,0.0928365]
[1742432711278,4e-05,86155.0,86154.0,0.1856729]
[1742432711578,4e-05,86155.0,86154.0,0.4104729]
[1742432711978,4e-05,86155.0,86154.0,0.41916496]
[1742432712177,4e-05,86155.0,86154.0,0.42916496]
[1742432712379,0.0928304,86160.0,86154.0,0.42916496]
[1742432712380,0.1392392,86168.0,86167.0,0.0928182]
[1742432713182,0.1392392,86168.0,86164.0,0.2148]
[1742432713183,0.0464116,86167.0,86164.0,0.2148]
[1742432713376,0.092844,86148.0,86147.0,0.092844]
[1742432713575,0.092844,86148.0,86147.0,0.463644]
[1742432713974,0.0928369,86158.0,86157.0,0.1392443]
[1742432714371,0.139254,86158.0,86157.0,0.1392443]
[1742432714673,0.139254,86158.0,86157.0,0.0464157]
[1742432714875,0.139254,86158.0,86157.0,0.2444157]
[1742432715096,0.139254,86158.0,86157.0,0.198]
[1742432715683,0.139254,86158.0,86138.0,0.4072266]
[1742432715684,0.092843,86148.0,86143.0,0.12284]
[1742432715980,0.092843,86148.0,86144.0,0.0464234]
[1742432716183,0.092843,86148.0,86145.0,0.09301951]
[1742432716382,0.092843,86148.0,86147.0,0.453644]
[1742432716573,0.092843,86148.0,86147.0,0.3608]
[1742432717085,0.0928624,86130.0,86129.0,0.4536626]
[1742432717387,0.0928624,86130.0,86129.0,0.0928626]
[1742432717683,0.046428,86136.0,86125.0,0.1228]
[1742432717684,0.0464321,86129.0,86125.0,0.1228]
[1742432717887,0.0928667,86126.0,86125.0,0.2256654]
[1742432718080,0.0928667,86126.0,86125.0,0.3185319]
[1742432718283,0.0928667,86126.0,86125.0,0.1957319]
[1742432718679,0.0928667,86126.0,86125.0,0.01]
[1742432718876,0.0928699,86123.0,86122.0,0.3046708]
[1742432719080,0.0928699,86123.0,86122.0,0.2118]
[1742432719280,0.0928699,86123.0,86122.0,0.304671]
[1742432719589,0.0928699,86123.0,86122.0,0.2118]
[1742432719785,0.0928699,86123.0,86122.0,0.304671]
[1742432721381,0.0464329,86127.0,86124.0,0.0928688]
[1742432721589,0.1393007,86127.0,86126.0,0.0928667]
[1742432722880,4e-05,86128.0,86127.0,0.0928656]
[1742432723079,4e-05,86128.0,86127.0,0.3008656]
[1742432723282,0.0928593,86133.0,86132.0,0.0928602]
[1742432723585,0.00017375,86134.0,86133.0,0.0928591]
[1742432723887,0.00017375,86134.0,86133.0,0.2150591]
[1742432724090,0.10783695,86137.0,86136.0,0.0928559]
[1742432724280,0.10683695,86137.0,86136.0,0.1128559]
[1742432724590,0.10683695,86137.0,86136.0,0.12782449]
[1742432724787,0.33737807,86142.0,86139.0,0.0464258]
[1742432724982,0.33737807,86142.0,86141.0,0.4536505]
[1742432725181,0.33737807,86142.0,86141.0,0.4636505]
[1742432725382,0.33737807,86142.0,86141.0,1.9636505]
[1742432726082,0.43022747,86142.0,86141.0,0.4636505]
[1742432726287,0.33737807,86142.0,86141.0,0.4636505]
[1742432727090,0.33737807,86142.0,86141.0,1.9636505]
[1742432728091,0.33737807,86142.0,86141.0,2.1791505]
[1742432728291,0.0928866,86145.0,86144.0,0.0928473]
[1742432728492,0.0928866,86145.0,86144.0,0.1328473]
[1742432729078,4e-05,86145.0,86144.0,0.1328473]
[1742432729994,4e-05,86145.0,86144.0,0.4936473]
[1742432730495,0.2155,86155.0,86154.0,0.0928365]
[1742432730693,0.3012345,86156.0,86155.0,0.0928354]
[1742432730884,0.3002345,86156.0,86155.0,0.3061354]
[1742432731092,0.2074,86156.0,86155.0,0.3061354]
[1742432732290,0.2086,86159.0,86155.0,0.3061354]
[1742432732291,0.2086,86159.0,86158.0,0.0928322]
[1742432732493,0.2074,86161.0,86158.0,0.1392478]
[1742432732689,0.1392399,86164.0,86163.0,0.0928246]
[1742432732989,0.1392399,86164.0,86163.0,0.3079246]
[1742432733195,0.3498399,86164.0,86163.0,0.3079246]
[1742432734193,0.3498399,86164.0,86163.0,0.5153246]
[1742432735101,0.2106,86164.0,86163.0,0.5153246]
[1742432735296,0.3034257,86164.0,86163.0,0.8761246]
[1742432735602,0.0928257,86164.0,86163.0,0.8761246]
[1742432736590,0.20294,86165.0,86164.0,0.0928257]
[1742432736791,4e-05,86165.0,86164.0,0.5043257]
[1742432737605,4e-05,86165.0,86164.0,0.51892575]
[1742432737801,0.0928646,86165.0,86164.0,0.51892575]
[1742432738494,4e-05,86165.0,86164.0,0.51892575]
[1742432738701,0.0928646,86165.0,86164.0,0.51892575]
[1742432739385,0.0928246,86165.0,86164.0,0.51892575]
[1742432739996,0.5146246,86165.0,86164.0,0.5043257]
[1742432740198,0.0928246,86165.0,86164.0,0.5043257]
[1742432741594,0.5162246,86165.0,86164.0,0.5043257]
[1742432743601,0.4234,86165.0,86164.0,0.5043257]
[1742432743803,0.0928636,86166.0,86165.0,0.0928246]
[1742432744103,0.0928636,86166.0,86165.0,0.4875246]
[1742432744298,0.0928236,86166.0,86165.0,0.4875246]
[1742432744898,4e-05,86167.0,86166.0,0.0928236]
[1742432745117,0.0928625,86167.0,86166.0,0.5264236]
[1742432748600,0.0464123,86166.0,86163.0,0.3608]
[1742432748808,0.0928257,86164.0,86163.0,0.5464504]
[1742432749605,0.0928257,86164.0,86163.0,0.1856504]
[1742432750700,0.0928236,86166.0,86165.0,0.0928236]
[1742432750904,0.0928625,86167.0,86166.0,0.0928236]
[1742432751103,0.0928625,86167.0,86166.0,0.4896236]
[1742432751309,0.0928225,86167.0,86166.0,0.4896236]
[1742432751896,0.5041225,86167.0,86166.0,0.4896236]
[1742432755507,0.1966,86167.0,86166.0,0.4896236]
[1742432755699,0.2894225,86167.0,86166.0,0.4896236]
[1742432756105,0.0928225,86167.0,86166.0,0.4896236]
[1742432757899,0.20504,86168.0,86166.0,0.4896236]
[1742432758106,4e-05,86175.0,86174.0,0.092815]
[1742432758314,0.0464038,86181.0,86180.0,0.0464037]
[1742432758616,0.0464038,86181.0,86180.0,0.4504037]
[1742432758817,0.2569038,86181.0,86180.0,0.4504037]
[1742432759016,0.4658038,86181.0,86180.0,0.4504037]
[1742432759916,0.0928046,86184.0,86183.0,0.1392052]
[1742432760214,0.2956031,86185.0,86184.0,0.0928042]
[1742432760517,0.2956431,86185.0,86184.0,0.0928042]
[1742432760719,0.4981431,86185.0,86184.0,0.5053042]
[1742432762610,0.40534,86185.0,86184.0,0.5053042]
[1742432762812,0.20284,86185.0,86184.0,0.5053042]
[1742432763220,4e-05,86185.0,86184.0,0.5053042]
[1742432763416,0.1975,86190.0,86189.0,0.0927988]
[1742432763818,0.0927984,86190.0,86189.0,0.6069976]
[1742432764819,0.2926984,86190.0,86189.0,0.6069976]
[1742432765022,0.4901984,86190.0,86189.0,0.6069976]
[1742432767634,0.0927988,86189.0,86188.0,0.3608]
[1742432767829,0.092816,86173.0,86160.0,0.00870841]
[1742432768012,0.092816,86173.0,86166.0,0.0464116]
[1742432768218,0.092816,86173.0,86167.0,0.4393109]
[1742432768424,0.092816,86173.0,86169.0,0.0928196]
[1742432768727,0.092816,86173.0,86172.0,0.09299121]
[1742432771729,0.309816,86173.0,86172.0,0.09299121]